[Event "Titled Tuesday Blitz August 09 Early 2022"]
[White "Martinez, Shawn"]
[Black "Lagno, Kateryna"]
[WhiteFideId "2039770"]
[BlackFideId "14109336"]
[WhiteElo "2174"]
[BlackElo "2522"]
[Result "0-1"]
[Round "10"]
[TimeControl "180+1"]
[Date "2022.08.09"]
[WhiteClock "0:00:14"]
[BlackClock "0:00:43"]

1. e4 {[%clk 0:02:59]}  e5 {[%clk 0:02:57]} 2. Nf3 {[%clk 0:02:55]}  Nc6 {[%clk 0:02:57]} 3. d4 {[%clk 0:02:54]}  exd4 {[%clk 0:02:56]} 4. Nxd4 {[%clk 0:02:55]}  Nf6 {[%clk 0:02:56]} 5. Nxc6 {[%clk 0:02:55]}  bxc6 {[%clk 0:02:56]} 6. e5 {[%clk 0:02:54]}  Qe7 {[%clk 0:02:56]} 7. Qe2 {[%clk 0:02:54]}  Nd5 {[%clk 0:02:57]} 8. c4 {[%clk 0:02:54]}  Nb6 {[%clk 0:02:57]} 9. Nd2 {[%clk 0:02:52]}  g6 {[%clk 0:02:46]} 10. Nf3 {[%clk 0:02:51]}  Bg7 {[%clk 0:02:44]} 11. Bg5 {[%clk 0:02:31]}  Qb4+ {[%clk 0:02:41]} 12. Qd2 {[%clk 0:02:29]}  Qxd2+ {[%clk 0:02:39]} 13. Bxd2 {[%clk 0:02:29]}  d6 {[%clk 0:02:36]} 14. Bc3 {[%clk 0:02:18]}  O-O {[%clk 0:02:35]} 15. O-O-O {[%clk 0:02:14]}  Na4 {[%clk 0:02:17]} 16. Bd4 {[%clk 0:02:12]}  c5 {[%clk 0:02:16]} 17. Be3 {[%clk 0:02:12]}  dxe5 {[%clk 0:02:11]} 18. b3 {[%clk 0:01:56]}  Nc3 {[%clk 0:02:11]} 19. Rd2 {[%clk 0:01:56]}  Ne4 {[%clk 0:02:05]} 20. Rd5 {[%clk 0:01:37]}  Bb7 {[%clk 0:02:03]} 21. Rd7 {[%clk 0:01:37]}  Rac8 {[%clk 0:01:59]} 22. Ng5 {[%clk 0:01:28]}  Bc6 {[%clk 0:01:54]} 23. Rd3 {[%clk 0:01:19]}  Nxg5 {[%clk 0:01:51]} 24. Bxg5 {[%clk 0:01:19]}  e4 {[%clk 0:01:38]} 25. Rd1 {[%clk 0:01:16]}  Bd4 {[%clk 0:01:38]} 26. Be3 {[%clk 0:00:54]}  Rcd8 {[%clk 0:01:38]} 27. Kc2 {[%clk 0:00:54]}  f5 {[%clk 0:01:36]} 28. g3 {[%clk 0:00:52]}  a5 {[%clk 0:01:27]} 29. Be2 {[%clk 0:00:52]}  Kg7 {[%clk 0:01:25]} 30. h4 {[%clk 0:00:50]}  h6 {[%clk 0:01:25]} 31. Rd2 {[%clk 0:00:45]}  Rd7 {[%clk 0:01:23]} 32. Rhd1 {[%clk 0:00:45]}  Rfd8 {[%clk 0:01:23]} 33. a3 {[%clk 0:00:45]}  Kf7 {[%clk 0:01:13]} 34. Bxh6 {[%clk 0:00:42]}  Bxf2 {[%clk 0:01:11]} 35. Rxd7+ {[%clk 0:00:31]}  Rxd7 {[%clk 0:01:11]} 36. Rxd7+ {[%clk 0:00:32]}  Bxd7 {[%clk 0:01:12]} 37. Bd2 {[%clk 0:00:31]}  a4 {[%clk 0:01:11]} 38. b4 {[%clk 0:00:30]}  Bxg3 {[%clk 0:01:08]} 39. b5 {[%clk 0:00:22]}  f4 {[%clk 0:01:09]} 40. Bd1 {[%clk 0:00:22]}  e3 {[%clk 0:01:05]} 41. Ba5 {[%clk 0:00:21]}  Bf5+ {[%clk 0:01:05]} 42. Kc1 {[%clk 0:00:19]}  f3 {[%clk 0:00:55]} 43. Bxf3 {[%clk 0:00:18]}  Bd3 {[%clk 0:00:55]} 44. Kd1 {[%clk 0:00:17]}  Bxc4 {[%clk 0:00:56]} 45. b6 {[%clk 0:00:16]}  cxb6 {[%clk 0:00:53]} 46. Bxb6 {[%clk 0:00:17]}  Bd6 {[%clk 0:00:50]} 47. h5 {[%clk 0:00:17]}  gxh5 {[%clk 0:00:49]} 48. Bxh5+ {[%clk 0:00:17]}  Kf6 {[%clk 0:00:48]} 49. Be8 {[%clk 0:00:17]}  e2+ {[%clk 0:00:45]} 50. Kd2 {[%clk 0:00:16]}  Bf4+ {[%clk 0:00:44]} 51. Ke1 {[%clk 0:00:16]}  Bg3+ {[%clk 0:00:44]} 52. Kd2 {[%clk 0:00:17]}  e1=Q+ {[%clk 0:00:44]} 53. Kc2 {[%clk 0:00:16]}  Bb3+ {[%clk 0:00:44]} 54. Kd3 {[%clk 0:00:15]}  c4+ {[%clk 0:00:42]} 55. Kd4 {[%clk 0:00:14]}  Qe5# {[%clk 0:00:43]} 0-1


[Site "https://www.chess.com"]

[Event "Titled Tuesday Blitz August 09 Early 2022"]
[White "Mathieu, Phileas"]
[Black "Hambleton, Aman"]
[WhiteFideId "36048410"]
[BlackFideId "2606577"]
[WhiteElo "2138"]
[BlackElo "2538"]
[Result "0-1"]
[Round "10"]
[TimeControl "180+1"]
[Date "2022.08.09"]
[WhiteClock "0:00:54"]
[BlackClock "0:00:09"]

1. e4 {[%clk 0:03:00]}  c5 {[%clk 0:02:58]} 2. Nc3 {[%clk 0:02:59]}  e6 {[%clk 0:02:58]} 3. Nge2 {[%clk 0:02:57]}  Nc6 {[%clk 0:02:53]} 4. g3 {[%clk 0:02:55]}  d5 {[%clk 0:02:41]} 5. exd5 {[%clk 0:02:56]}  exd5 {[%clk 0:02:41]} 6. d4 {[%clk 0:02:52]}  Bg4 {[%clk 0:02:20]} 7. Bg2 {[%clk 0:02:43]}  cxd4 {[%clk 0:02:19]} 8. Nxd5 {[%clk 0:02:28]}  Nf6 {[%clk 0:02:19]} 9. Nxf6+ {[%clk 0:02:22]}  Qxf6 {[%clk 0:02:20]} 10. h3 {[%clk 0:02:20]}  Bf3 {[%clk 0:02:17]} 11. O-O {[%clk 0:02:08]}  O-O-O {[%clk 0:01:50]} 12. Qd3 {[%clk 0:01:50]}  Ne5 {[%clk 0:01:30]} 13. Qd2 {[%clk 0:01:27]}  Bxg2 {[%clk 0:00:19]} 14. Kxg2 {[%clk 0:01:28]}  Qf3+ {[%clk 0:00:18]} 15. Kh2 {[%clk 0:01:26]}  Qc6 {[%clk 0:00:19]} 16. Ng1 {[%clk 0:01:25]}  h5 {[%clk 0:00:14]} 17. Qf4 {[%clk 0:01:20]}  Ng4+ {[%clk 0:00:12]} 18. Qxg4+ {[%clk 0:01:00]}  hxg4 {[%clk 0:00:12]} 19. h4 {[%clk 0:01:00]}  Bd6 {[%clk 0:00:10]} 20. f3 {[%clk 0:00:56]}  Rxh4+ {[%clk 0:00:08]} 21. Kg2 {[%clk 0:00:56]}  gxf3+ {[%clk 0:00:09]} 22. Nxf3 {[%clk 0:00:54]}  Rg4 {[%clk 0:00:09]} 0-1


[Site "https://www.chess.com"]

[Event "Titled Tuesday Blitz August 09 Early 2022"]
[White "McConnell, Griffin"]
[Black "Nemurov, Aleksandr"]
[WhiteFideId "30942551"]
[BlackFideId "4194187"]
[WhiteElo "2320"]
[BlackElo "2190"]
[Result "1-0"]
[Round "10"]
[TimeControl "180+1"]
[Date "2022.08.09"]
[WhiteClock "0:00:26"]
[BlackClock "0:00:02"]

1. e4 {[%clk 0:03:00]}  c6 {[%clk 0:02:59]} 2. Nc3 {[%clk 0:02:59]}  d5 {[%clk 0:03:00]} 3. d3 {[%clk 0:03:00]}  g6 {[%clk 0:02:54]} 4. g3 {[%clk 0:03:00]}  Bg7 {[%clk 0:02:54]} 5. Bg2 {[%clk 0:03:00]}  Nf6 {[%clk 0:02:53]} 6. Nge2 {[%clk 0:02:59]}  Bg4 {[%clk 0:02:52]} 7. O-O {[%clk 0:02:56]}  Bxe2 {[%clk 0:02:53]} 8. Qxe2 {[%clk 0:02:53]}  e6 {[%clk 0:02:54]} 9. Bg5 {[%clk 0:02:48]}  dxe4 {[%clk 0:02:48]} 10. dxe4 {[%clk 0:02:31]}  h6 {[%clk 0:02:46]} 11. Be3 {[%clk 0:02:30]}  O-O {[%clk 0:02:45]} 12. f4 {[%clk 0:02:29]}  Nbd7 {[%clk 0:02:43]} 13. Rad1 {[%clk 0:02:27]}  Qc7 {[%clk 0:02:41]} 14. Rd2 {[%clk 0:02:23]}  Rfd8 {[%clk 0:02:36]} 15. Rfd1 {[%clk 0:02:23]}  Nb6 {[%clk 0:02:28]} 16. Rxd8+ {[%clk 0:02:11]}  Rxd8 {[%clk 0:02:29]} 17. Rxd8+ {[%clk 0:02:11]}  Qxd8 {[%clk 0:02:30]} 18. Qd3 {[%clk 0:02:09]}  Qc7 {[%clk 0:02:28]} 19. b3 {[%clk 0:02:07]}  Nbd7 {[%clk 0:02:25]} 20. a4 {[%clk 0:01:55]}  Bf8 {[%clk 0:01:57]} 21. h3 {[%clk 0:01:49]}  Bc5 {[%clk 0:01:54]} 22. Bxc5 {[%clk 0:01:48]}  Nxc5 {[%clk 0:01:54]} 23. Qd4 {[%clk 0:01:46]}  Ncd7 {[%clk 0:01:50]} 24. Ne2 {[%clk 0:01:34]}  e5 {[%clk 0:01:44]} 25. Qxa7 {[%clk 0:01:22]}  exf4 {[%clk 0:01:44]} 26. gxf4 {[%clk 0:01:21]}  Nh5 {[%clk 0:01:43]} 27. Qe3 {[%clk 0:01:20]}  Qd6 {[%clk 0:01:41]} 28. Qd3 {[%clk 0:01:10]}  Qe7 {[%clk 0:01:36]} 29. Bf3 {[%clk 0:01:06]}  Nhf6 {[%clk 0:01:34]} 30. e5 {[%clk 0:01:05]}  Ne8 {[%clk 0:01:30]} 31. Nd4 {[%clk 0:01:00]}  Nc5 {[%clk 0:01:29]} 32. Qc4 {[%clk 0:00:58]}  Ne6 {[%clk 0:01:26]} 33. Nxe6 {[%clk 0:00:57]}  fxe6 {[%clk 0:01:27]} 34. Bg4 {[%clk 0:00:56]}  Kf7 {[%clk 0:01:26]} 35. Kg2 {[%clk 0:00:55]}  h5 {[%clk 0:01:27]} 36. Bf3 {[%clk 0:00:54]}  Nc7 {[%clk 0:01:24]} 37. b4 {[%clk 0:00:52]}  Nd5 {[%clk 0:01:22]} 38. Bxd5 {[%clk 0:00:51]}  exd5 {[%clk 0:01:13]} 39. Qd4 {[%clk 0:00:46]}  Qe6 {[%clk 0:01:03]} 40. b5 {[%clk 0:00:44]}  g5 {[%clk 0:01:02]} 41. fxg5 {[%clk 0:00:40]}  Qf5 {[%clk 0:00:55]} 42. Qf2 {[%clk 0:00:39]}  Ke6 {[%clk 0:00:52]} 43. Qxf5+ {[%clk 0:00:36]}  Kxf5 {[%clk 0:00:53]} 44. h4 {[%clk 0:00:36]}  cxb5 {[%clk 0:00:52]} 45. axb5 {[%clk 0:00:35]}  Kxe5 {[%clk 0:00:53]} 46. Kf3 {[%clk 0:00:35]}  d4 {[%clk 0:00:52]} 47. Ke2 {[%clk 0:00:35]}  b6 {[%clk 0:00:47]} 48. Kd3 {[%clk 0:00:35]}  Kd5 {[%clk 0:00:47]} 49. g6 {[%clk 0:00:31]}  Ke6 {[%clk 0:00:18]} 50. Kxd4 {[%clk 0:00:30]}  Kf6 {[%clk 0:00:13]} 51. Kd5 {[%clk 0:00:30]}  Kg7 {[%clk 0:00:10]} 52. Ke5 {[%clk 0:00:27]}  Kg8 {[%clk 0:00:08]} 53. Kf6 {[%clk 0:00:26]}  Kf8 {[%clk 0:00:09]} 54. Kg5 {[%clk 0:00:26]}  Kg7 {[%clk 0:00:09]} 55. Kxh5 {[%clk 0:00:26]}  Kg8 {[%clk 0:00:09]} 56. Kg5 {[%clk 0:00:26]}  Kh8 {[%clk 0:00:10]} 57. h5 {[%clk 0:00:27]}  Kg8 {[%clk 0:00:11]} 58. h6 {[%clk 0:00:27]}  Kh8 {[%clk 0:00:12]} 59. Kf6 {[%clk 0:00:28]}  Kg8 {[%clk 0:00:12]} 60. g7 {[%clk 0:00:25]}  Kh7 {[%clk 0:00:08]} 61. Kf7 {[%clk 0:00:26]}  Kxh6 {[%clk 0:00:05]} 62. g8=Q {[%clk 0:00:26]}  Kh5 {[%clk 0:00:02]} 63. Kf6 {[%clk 0:00:27]}  Kh4 {[%clk 0:00:02]} 64. Kf5 {[%clk 0:00:26]}  Kh3 {[%clk 0:00:03]} 65. Kf4 {[%clk 0:00:26]}  Kh2 {[%clk 0:00:02]} 66. Kf3 {[%clk 0:00:26]} 1-0


[Site "https://www.chess.com"]

[Event "Titled Tuesday Blitz August 09 Early 2022"]
[White "Nazari, Arad"]
[Black "Melikyan, Gnel"]
[WhiteFideId "12577324"]
[BlackFideId "54109990"]
[WhiteElo "2129"]
[BlackElo "1772"]
[Result "1-0"]
[Round "10"]
[TimeControl "180+1"]
[Date "2022.08.09"]
[WhiteClock "0:00:42"]
[BlackClock "0:00:19"]

1. e4 {[%clk 0:03:00]}  c5 {[%clk 0:02:57]} 2. Nf3 {[%clk 0:03:01]}  Nc6 {[%clk 0:02:57]} 3. Bb5 {[%clk 0:03:01]}  e6 {[%clk 0:02:57]} 4. O-O {[%clk 0:02:58]}  Nge7 {[%clk 0:02:57]} 5. d4 {[%clk 0:02:59]}  cxd4 {[%clk 0:02:55]} 6. Nxd4 {[%clk 0:03:00]}  Qb6 {[%clk 0:02:54]} 7. Nxc6 {[%clk 0:02:52]}  bxc6 {[%clk 0:02:54]} 8. Bd3 {[%clk 0:02:52]}  d5 {[%clk 0:02:53]} 9. b3 {[%clk 0:02:47]}  Ng6 {[%clk 0:02:44]} 10. Bb2 {[%clk 0:02:47]}  Nf4 {[%clk 0:02:34]} 11. Qg4 {[%clk 0:02:42]}  e5 {[%clk 0:02:17]} 12. Qf3 {[%clk 0:02:42]}  Nxd3 {[%clk 0:02:11]} 13. cxd3 {[%clk 0:02:40]}  d4 {[%clk 0:02:11]} 14. Nd2 {[%clk 0:02:40]}  Ba6 {[%clk 0:02:07]} 15. Rfc1 {[%clk 0:02:38]}  Bb4 {[%clk 0:01:52]} 16. Nc4 {[%clk 0:02:37]}  Bxc4 {[%clk 0:01:48]} 17. Rxc4 {[%clk 0:02:38]}  O-O {[%clk 0:01:47]} 18. Rac1 {[%clk 0:02:37]}  Rac8 {[%clk 0:01:45]} 19. R1c2 {[%clk 0:02:30]}  Rfe8 {[%clk 0:01:42]} 20. Qf5 {[%clk 0:02:24]}  g6 {[%clk 0:01:33]} 21. Qg5 {[%clk 0:02:21]}  Bf8 {[%clk 0:01:28]} 22. h4 {[%clk 0:02:17]}  Re6 {[%clk 0:01:21]} 23. f4 {[%clk 0:02:12]}  Be7 {[%clk 0:01:16]} 24. Qg3 {[%clk 0:01:56]}  exf4 {[%clk 0:01:16]} 25. Qxf4 {[%clk 0:01:56]}  Bd6 {[%clk 0:01:14]} 26. Qf2 {[%clk 0:01:49]}  Qa6 {[%clk 0:01:03]} 27. Bxd4 {[%clk 0:01:48]}  Be7 {[%clk 0:00:57]} 28. Ba1 {[%clk 0:01:39]}  Rd8 {[%clk 0:00:53]} 29. Qf3 {[%clk 0:01:24]}  Bxh4 {[%clk 0:00:50]} 30. d4 {[%clk 0:01:18]}  Bf6 {[%clk 0:00:47]} 31. e5 {[%clk 0:01:12]}  Bg5 {[%clk 0:00:41]} 32. Rf2 {[%clk 0:01:04]}  Rd7 {[%clk 0:00:35]} 33. Bc3 {[%clk 0:01:03]}  Qb6 {[%clk 0:00:33]} 34. Bb4 {[%clk 0:00:47]}  Bh4 {[%clk 0:00:28]} 35. g3 {[%clk 0:00:46]}  Bd8 {[%clk 0:00:28]} 36. Bc5 {[%clk 0:00:47]}  Qa6 {[%clk 0:00:28]} 37. g4 {[%clk 0:00:45]}  Bb6 {[%clk 0:00:26]} 38. Bd6 {[%clk 0:00:43]}  Rdxd6 {[%clk 0:00:19]} 39. Qxf7+ {[%clk 0:00:42]} 1-0


[Site "https://www.chess.com"]

[Event "Titled Tuesday Blitz August 09 Early 2022"]
[White "Omelja, Artem"]
[Black "Niyazgulova, Marina"]
[WhiteFideId "14119846"]
[BlackFideId "24142573"]
[WhiteElo "2382"]
[BlackElo "1986"]
[Result "0-1"]
[Round "10"]
[TimeControl "180+1"]
[Date "2022.08.09"]
[WhiteClock "0:00:02"]
[BlackClock "0:00:24"]

1. d4 {[%clk 0:03:00]}  d5 {[%clk 0:02:57]} 2. c4 {[%clk 0:02:59]}  c6 {[%clk 0:02:57]} 3. Nc3 {[%clk 0:02:59]}  Nf6 {[%clk 0:02:57]} 4. e3 {[%clk 0:02:59]}  a6 {[%clk 0:02:53]} 5. Nf3 {[%clk 0:02:54]}  b5 {[%clk 0:02:53]} 6. c5 {[%clk 0:02:51]}  Bf5 {[%clk 0:02:52]} 7. Ne5 {[%clk 0:02:27]}  g6 {[%clk 0:02:46]} 8. Be2 {[%clk 0:02:12]}  h5 {[%clk 0:02:43]} 9. h3 {[%clk 0:02:10]}  Bg7 {[%clk 0:02:43]} 10. O-O {[%clk 0:02:08]}  O-O {[%clk 0:02:42]} 11. a4 {[%clk 0:02:06]}  b4 {[%clk 0:02:34]} 12. Nb1 {[%clk 0:02:06]}  a5 {[%clk 0:02:34]} 13. Nd2 {[%clk 0:02:06]}  Qc7 {[%clk 0:02:32]} 14. g4 {[%clk 0:01:45]}  hxg4 {[%clk 0:02:30]} 15. hxg4 {[%clk 0:01:46]}  Be6 {[%clk 0:02:29]} 16. g5 {[%clk 0:01:44]}  Ne4 {[%clk 0:02:22]} 17. f4 {[%clk 0:01:35]}  Bf5 {[%clk 0:02:12]} 18. Nxe4 {[%clk 0:01:30]}  Bxe4 {[%clk 0:02:12]} 19. Bd3 {[%clk 0:01:31]}  Bxd3 {[%clk 0:01:57]} 20. Qxd3 {[%clk 0:01:32]}  Nd7 {[%clk 0:01:58]} 21. Bd2 {[%clk 0:01:31]}  Qb7 {[%clk 0:01:37]} 22. Qe2 {[%clk 0:01:16]}  Bxe5 {[%clk 0:01:33]} 23. fxe5 {[%clk 0:01:14]}  Kg7 {[%clk 0:01:33]} 24. Be1 {[%clk 0:01:04]}  Rh8 {[%clk 0:01:27]} 25. Bg3 {[%clk 0:01:00]}  e6 {[%clk 0:01:13]} 26. Rf2 {[%clk 0:00:51]}  Raf8 {[%clk 0:00:56]} 27. Raf1 {[%clk 0:00:50]}  Nb8 {[%clk 0:00:47]} 28. Rf4 {[%clk 0:00:46]}  Rh5 {[%clk 0:00:42]} 29. Kg2 {[%clk 0:00:28]}  Qe7 {[%clk 0:00:37]} 30. Bh4 {[%clk 0:00:19]}  Qd7 {[%clk 0:00:34]} 31. Kg3 {[%clk 0:00:16]}  Qe7 {[%clk 0:00:33]} 32. Rf6 {[%clk 0:00:16]}  Qd7 {[%clk 0:00:29]} 33. Qg4 {[%clk 0:00:16]}  Qe7 {[%clk 0:00:29]} 34. Kg2 {[%clk 0:00:15]}  Nd7 {[%clk 0:00:28]} 35. Rh1 {[%clk 0:00:06]}  Nb8 {[%clk 0:00:26]} 36. Bg3 {[%clk 0:00:05]}  Rxh1 {[%clk 0:00:25]} 37. Kxh1 {[%clk 0:00:06]}  Rh8+ {[%clk 0:00:25]} 38. Kg2 {[%clk 0:00:06]}  Rh5 {[%clk 0:00:24]} 39. Bf4 {[%clk 0:00:02]}  Nd7 {[%clk 0:00:24]} 40. Qe2 {[%clk 0:00:02]}  Nb8 {[%clk 0:00:24]} 0-1


[Site "https://www.chess.com"]

[Event "Titled Tuesday Blitz August 09 Early 2022"]
[White "Orlov, Georgi"]
[Black "Fiorito, Joaquin"]
[WhiteFideId "2011271"]
[BlackFideId "180173"]
[WhiteElo "2590"]
[BlackElo "1758"]
[Result "0-1"]
[Round "10"]
[TimeControl "180+1"]
[Date "2022.08.09"]
[WhiteClock "0:00:11"]
[BlackClock "0:00:50"]

1. e4 {[%clk 0:02:30]}  c6 {[%clk 0:02:59]} 2. Nc3 {[%clk 0:02:29]}  d5 {[%clk 0:02:59]} 3. Nf3 {[%clk 0:02:29]}  Bg4 {[%clk 0:03:00]} 4. h3 {[%clk 0:02:29]}  Bxf3 {[%clk 0:03:00]} 5. Qxf3 {[%clk 0:02:29]}  Nf6 {[%clk 0:03:01]} 6. e5 {[%clk 0:02:18]}  Nfd7 {[%clk 0:03:00]} 7. d4 {[%clk 0:02:18]}  e6 {[%clk 0:02:59]} 8. Qg3 {[%clk 0:02:16]}  Qb6 {[%clk 0:02:53]} 9. Ne2 {[%clk 0:02:00]}  c5 {[%clk 0:02:53]} 10. c3 {[%clk 0:01:56]}  Nc6 {[%clk 0:02:53]} 11. dxc5 {[%clk 0:01:55]}  Bxc5 {[%clk 0:02:53]} 12. b4 {[%clk 0:01:47]}  Nxb4 {[%clk 0:02:21]} 13. cxb4 {[%clk 0:01:46]}  Bxb4+ {[%clk 0:02:22]} 14. Kd1 {[%clk 0:01:42]}  O-O-O {[%clk 0:02:16]} 15. Rb1 {[%clk 0:01:40]}  Qa5 {[%clk 0:02:08]} 16. Qb3 {[%clk 0:01:37]}  Nc5 {[%clk 0:01:44]} 17. Qc2 {[%clk 0:01:16]}  Kb8 {[%clk 0:01:42]} 18. a3 {[%clk 0:01:08]}  Bxa3 {[%clk 0:01:39]} 19. Nd4 {[%clk 0:00:53]}  Rc8 {[%clk 0:01:31]} 20. Ra1 {[%clk 0:00:49]}  Na4 {[%clk 0:01:31]} 21. Qd2 {[%clk 0:00:41]}  Bb4 {[%clk 0:01:14]} 22. Nb3 {[%clk 0:00:21]}  Qb6 {[%clk 0:01:08]} 23. Qe3 {[%clk 0:00:19]}  Nc3+ {[%clk 0:01:07]} 24. Ke1 {[%clk 0:00:19]}  d4 {[%clk 0:00:59]} 25. Qd3 {[%clk 0:00:17]}  Ne4+ {[%clk 0:00:56]} 26. Ke2 {[%clk 0:00:16]}  Rc3 {[%clk 0:00:54]} 27. Qxe4 {[%clk 0:00:15]}  Rxb3 {[%clk 0:00:54]} 28. Kd1 {[%clk 0:00:15]}  Rc8 {[%clk 0:00:53]} 29. Be2 {[%clk 0:00:13]}  d3 {[%clk 0:00:53]} 30. Bf3 {[%clk 0:00:13]}  Rc2 {[%clk 0:00:51]} 31. Be3 {[%clk 0:00:12]}  Bc5 {[%clk 0:00:50]} 32. Bxc5 {[%clk 0:00:11]}  Rb1+ {[%clk 0:00:50]} 0-1


[Site "https://www.chess.com"]

[Event "Titled Tuesday Blitz August 09 Early 2022"]
[White "Petrova, Irina"]
[Black "Jiganchine, Roman"]
[WhiteFideId "14124122"]
[BlackFideId "2603667"]
[WhiteElo "2021"]
[BlackElo "2288"]
[Result "1/2-1/2"]
[Round "10"]
[TimeControl "180+1"]
[Date "2022.08.09"]
[WhiteClock "0:00:16"]
[BlackClock "0:00:09"]

1. e4 {[%clk 0:03:00]}  c6 {[%clk 0:02:57]} 2. d4 {[%clk 0:03:00]}  d5 {[%clk 0:02:57]} 3. e5 {[%clk 0:03:00]}  Bf5 {[%clk 0:02:56]} 4. h4 {[%clk 0:03:00]}  h5 {[%clk 0:02:55]} 5. c4 {[%clk 0:03:00]}  e6 {[%clk 0:02:46]} 6. Nc3 {[%clk 0:02:59]}  Bb4 {[%clk 0:02:23]} 7. Bd3 {[%clk 0:02:55]}  Bxd3 {[%clk 0:02:21]} 8. Qxd3 {[%clk 0:02:56]}  Ne7 {[%clk 0:02:20]} 9. Ne2 {[%clk 0:02:55]}  O-O {[%clk 0:02:18]} 10. Bg5 {[%clk 0:02:55]}  dxc4 {[%clk 0:02:10]} 11. Qxc4 {[%clk 0:02:54]}  Bxc3+ {[%clk 0:02:09]} 12. bxc3 {[%clk 0:02:48]}  Qd5 {[%clk 0:02:07]} 13. Qd3 {[%clk 0:02:43]}  Nf5 {[%clk 0:02:04]} 14. Nf4 {[%clk 0:02:43]}  Qa5 {[%clk 0:01:54]} 15. Nxh5 {[%clk 0:02:39]}  c5 {[%clk 0:01:48]} 16. O-O {[%clk 0:02:34]}  cxd4 {[%clk 0:01:46]} 17. cxd4 {[%clk 0:02:33]}  Nc6 {[%clk 0:01:46]} 18. Be3 {[%clk 0:02:10]}  Rad8 {[%clk 0:01:34]} 19. Qe4 {[%clk 0:02:02]}  Ncxd4 {[%clk 0:01:16]} 20. Qg4 {[%clk 0:01:59]}  Qxe5 {[%clk 0:01:02]} 21. Bg5 {[%clk 0:01:57]}  Rd5 {[%clk 0:00:58]} 22. Nf6+ {[%clk 0:01:52]}  Kh8 {[%clk 0:00:49]} 23. Qh5+ {[%clk 0:01:39]}  Nh6 {[%clk 0:00:48]} 24. Nxd5 {[%clk 0:01:38]}  Qxd5 {[%clk 0:00:47]} 25. Rad1 {[%clk 0:01:18]}  Kh7 {[%clk 0:00:40]} 26. Rxd4 {[%clk 0:00:48]}  Qxd4 {[%clk 0:00:36]} 27. Bxh6 {[%clk 0:00:45]}  gxh6 {[%clk 0:00:37]} 28. Re1 {[%clk 0:00:45]}  Qf6 {[%clk 0:00:28]} 29. Re3 {[%clk 0:00:43]}  Qg6 {[%clk 0:00:27]} 30. Qc5 {[%clk 0:00:38]}  Rg8 {[%clk 0:00:26]} 31. Rg3 {[%clk 0:00:38]}  Qb1+ {[%clk 0:00:25]} 32. Kh2 {[%clk 0:00:39]}  Rxg3 {[%clk 0:00:25]} 33. fxg3 {[%clk 0:00:40]}  Qe4 {[%clk 0:00:19]} 34. Qxa7 {[%clk 0:00:37]}  Kg6 {[%clk 0:00:18]} 35. a4 {[%clk 0:00:33]}  h5 {[%clk 0:00:17]} 36. a5 {[%clk 0:00:33]}  Qd5 {[%clk 0:00:14]} 37. Qb6 {[%clk 0:00:32]}  Kg7 {[%clk 0:00:11]} 38. Qb2+ {[%clk 0:00:32]}  Kg6 {[%clk 0:00:11]} 39. Qc2+ {[%clk 0:00:31]}  Qf5 {[%clk 0:00:10]} 40. Qc8 {[%clk 0:00:24]}  Qd5 {[%clk 0:00:10]} 41. Qg8+ {[%clk 0:00:22]}  Kf6 {[%clk 0:00:10]} 42. Qh8+ {[%clk 0:00:22]}  Kg6 {[%clk 0:00:10]} 43. Qg8+ {[%clk 0:00:22]}  Kf6 {[%clk 0:00:10]} 44. Qa8 {[%clk 0:00:20]}  Kg6 {[%clk 0:00:10]} 45. a6 {[%clk 0:00:19]}  bxa6 {[%clk 0:00:10]} 46. Qxa6 {[%clk 0:00:20]}  Kf6 {[%clk 0:00:10]} 47. Qa1+ {[%clk 0:00:19]}  Kg6 {[%clk 0:00:10]} 48. Qh8 {[%clk 0:00:19]}  Qf5 {[%clk 0:00:10]} 49. Qg8+ {[%clk 0:00:18]}  Kh6 {[%clk 0:00:10]} 50. Qh8+ {[%clk 0:00:18]}  Kg6 {[%clk 0:00:10]} 51. Qd8 {[%clk 0:00:17]}  Kh6 {[%clk 0:00:10]} 52. Qd2+ {[%clk 0:00:17]}  Kg6 {[%clk 0:00:10]} 53. Qb2 {[%clk 0:00:16]}  Kh6 {[%clk 0:00:10]} 54. Qc1+ {[%clk 0:00:16]}  Kg6 {[%clk 0:00:10]} 55. Qb2 {[%clk 0:00:16]}  Kh6 {[%clk 0:00:10]} 56. Qd2+ {[%clk 0:00:15]}  Kg6 {[%clk 0:00:10]} 57. Qd1 {[%clk 0:00:15]}  Kh6 {[%clk 0:00:09]} 58. Qc1+ {[%clk 0:00:16]}  Kg6 {[%clk 0:00:09]} 59. Qb2 {[%clk 0:00:16]} 1/2-1/2


[Site "https://www.chess.com"]

[Event "Titled Tuesday Blitz August 09 Early 2022"]
[White "Pranav Anand"]
[Black "Yaksin, Oleg"]
[WhiteFideId "46626786"]
[BlackFideId "24105880"]
[WhiteElo "2300"]
[BlackElo "2256"]
[Result "1-0"]
[Round "10"]
[TimeControl "180+1"]
[Date "2022.08.09"]
[WhiteClock "0:01:24"]
[BlackClock "0:00:01"]

1. Nf3 {[%clk 0:03:00]}  d5 {[%clk 0:02:39]} 2. g3 {[%clk 0:03:01]}  Nf6 {[%clk 0:02:37]} 3. Bg2 {[%clk 0:03:01]}  Bf5 {[%clk 0:02:33]} 4. d3 {[%clk 0:03:01]}  e6 {[%clk 0:02:33]} 5. Nh4 {[%clk 0:03:01]}  Bg6 {[%clk 0:02:33]} 6. Nxg6 {[%clk 0:03:01]}  hxg6 {[%clk 0:02:33]} 7. h3 {[%clk 0:03:02]}  Nbd7 {[%clk 0:02:33]} 8. Nd2 {[%clk 0:03:01]}  Be7 {[%clk 0:02:30]} 9. e4 {[%clk 0:03:01]}  c6 {[%clk 0:02:28]} 10. O-O {[%clk 0:03:01]}  dxe4 {[%clk 0:02:27]} 11. dxe4 {[%clk 0:03:01]}  e5 {[%clk 0:02:27]} 12. Qe2 {[%clk 0:03:01]}  O-O {[%clk 0:02:26]} 13. h4 {[%clk 0:03:00]}  Nc5 {[%clk 0:02:25]} 14. Nc4 {[%clk 0:02:59]}  Qc7 {[%clk 0:02:21]} 15. a4 {[%clk 0:03:00]}  Rad8 {[%clk 0:02:14]} 16. Bg5 {[%clk 0:02:58]}  Ne6 {[%clk 0:02:13]} 17. Be3 {[%clk 0:02:55]}  Bc5 {[%clk 0:02:05]} 18. c3 {[%clk 0:02:52]}  Bxe3 {[%clk 0:02:01]} 19. Qxe3 {[%clk 0:02:53]}  b6 {[%clk 0:01:55]} 20. b4 {[%clk 0:02:48]}  Ne8 {[%clk 0:01:22]} 21. Bh3 {[%clk 0:02:45]}  Qe7 {[%clk 0:01:20]} 22. Nxe5 {[%clk 0:02:40]}  Qc7 {[%clk 0:01:10]} 23. Nxg6 {[%clk 0:02:39]}  fxg6 {[%clk 0:01:08]} 24. Bxe6+ {[%clk 0:02:40]}  Kh7 {[%clk 0:01:09]} 25. Kg2 {[%clk 0:02:39]}  Nf6 {[%clk 0:01:09]} 26. e5 {[%clk 0:02:23]}  Nd5 {[%clk 0:00:56]} 27. Bxd5 {[%clk 0:02:20]}  Rxd5 {[%clk 0:00:57]} 28. Rae1 {[%clk 0:02:17]}  Rfd8 {[%clk 0:00:55]} 29. Qe4 {[%clk 0:02:15]}  Kh8 {[%clk 0:00:32]} 30. Rh1 {[%clk 0:02:11]}  Qf7 {[%clk 0:00:28]} 31. e6 {[%clk 0:02:09]}  Qf6 {[%clk 0:00:27]} 32. Re2 {[%clk 0:02:07]}  Re8 {[%clk 0:00:21]} 33. Rhe1 {[%clk 0:02:07]}  Re7 {[%clk 0:00:18]} 34. Re3 {[%clk 0:02:06]}  a5 {[%clk 0:00:16]} 35. Rf3 {[%clk 0:02:05]}  Rf5 {[%clk 0:00:13]} 36. Rxf5 {[%clk 0:02:04]}  gxf5 {[%clk 0:00:13]} 37. Qxc6 {[%clk 0:02:05]}  axb4 {[%clk 0:00:13]} 38. cxb4 {[%clk 0:02:06]}  Qd4 {[%clk 0:00:13]} 39. Re3 {[%clk 0:01:55]}  Qxb4 {[%clk 0:00:08]} 40. Qa8+ {[%clk 0:01:54]}  Kh7 {[%clk 0:00:08]} 41. Qf8 {[%clk 0:01:54]}  Qc5 {[%clk 0:00:03]} 42. h5 {[%clk 0:01:50]}  Qd5+ {[%clk 0:00:01]} 43. Kh2 {[%clk 0:01:48]}  Rxe6 {[%clk 0:00:02]} 44. Qf7 {[%clk 0:01:34]}  Rd6 {[%clk 0:00:01]} 45. Qe8 {[%clk 0:01:24]} 1-0


[Site "https://www.chess.com"]